bitfinex/quotes_BTCUSD_20251224
["timestamp","ask_amount","ask_price","bid_price","bid_amount"]
[1766538773912,0.0228386,87730.0,87723.0,0.31535]
[1766538774192,0.01144,87730.0,87723.0,0.31535]
[1766538774717,0.01144,87730.0,87723.0,0.32674951]
[1766538775237,0.01144,87730.0,87724.0,0.01139938]
[1766538775793,0.01144,87730.0,87723.0,0.32674951]
[1766538776119,0.01144,87730.0,87723.0,0.31535]
[1766538776562,0.01144,87730.0,87723.0,0.32674951]
[1766538776783,0.01144,87730.0,87725.0,0.01139925]
[1766538776983,0.01144,87734.0,87727.0,0.01139899]
[1766538777277,0.01139782,87736.0,87727.0,0.32578899]
[1766538777483,0.04561077,87737.0,87727.0,0.32578899]
[1766538777775,0.01139782,87736.0,87727.0,0.32578899]
[1766538777982,0.04561077,87737.0,87727.0,0.32578899]
[1766538778193,0.02283757,87738.0,87727.0,0.32578899]
[1766538778345,0.02283757,87738.0,87729.0,0.25786]
[1766538778542,0.01139757,87738.0,87729.0,0.25786]
[1766538778751,0.00766308,87740.0,87730.0,0.1552]
[1766538779003,0.01139731,87740.0,87730.0,0.1665986]
[1766538779149,0.01139744,87739.0,87730.0,0.1552]
[1766538779551,0.01139731,87740.0,87730.0,0.1665986]
[1766538780198,0.01139731,87740.0,87730.0,0.1780386]
[1766538780595,0.05698655,87740.0,87730.0,0.16664]
[1766538780750,0.50155,87735.0,87730.0,1e-06]
[1766538780950,0.50155,87733.0,87728.0,0.01144]
[1766538781406,0.5021,87728.0,87723.0,0.02283951]
[1766538781569,0.5021,87728.0,87724.0,0.01139938]
[1766538781767,0.50155,87728.0,87724.0,0.01139938]
[1766538781968,0.50155,87728.0,87722.0,0.01144]
[1766538784076,0.01139821,87733.0,87722.0,0.07983786]
[1766538784279,0.01139847,87731.0,87722.0,0.01144]
[1766538784577,0.50155,87745.0,87733.0,0.06838867]
[1766538784925,0.04051489,87777.0,87720.0,0.43223218]
[1766538784926,0.01144,87748.0,87746.0,0.01139653]
[1766538785077,0.50155,87756.0,87746.0,0.01139653]
[1766538785265,0.01144,87755.0,87749.0,0.01139614]
[1766538785464,0.01144,87755.0,87750.0,0.05698005]
[1766538785746,0.04560086,87762.0,87755.0,0.06837216]
[1766538785747,0.03420641,87762.0,87755.0,0.06837216]
[1766538785899,0.50155,87763.0,87755.0,0.01139536]
[1766538786098,0.51294432,87763.0,87755.0,5.297e-05]
[1766538786320,0.01139445,87762.0,87755.0,5.297e-05]
[1766538786520,0.51294432,87763.0,87755.0,5.297e-05]
[1766538789732,0.50155,87763.0,87755.0,5.297e-05]
[1766538790480,0.01139445,87762.0,87755.0,5.297e-05]
[1766538790711,0.51294432,87763.0,87755.0,5.297e-05]
[1766538792607,0.01139406,87765.0,87755.0,5.297e-05]
[1766538792608,0.01144,87765.0,87756.0,0.16096523]
[1766538792959,0.01144,87765.0,87757.0,0.0113951]
[1766538793600,0.01144,87765.0,87756.0,0.16096523]
[1766538793807,0.02283406,87765.0,87756.0,0.14957]
[1766538793951,0.00055,87756.0,87755.0,2.97e-06]
[1766538794158,0.50155,87756.0,87754.0,1.23e-06]
[1766538794353,0.01139536,87755.0,87745.0,0.0002]
[1766538794551,0.50165729,87756.0,87749.0,0.02279228]
[1766538794773,0.50165729,87756.0,87749.0,0.01139614]
[1766538795213,0.50165729,87756.0,87752.0,0.01139575]
[1766538795812,0.50165729,87756.0,87748.0,0.06837752]
[1766538796014,0.50165729,87756.0,87749.0,0.01139614]
[1766538796218,0.50165729,87756.0,87748.0,0.01139627]
[1766538797241,0.01139549,87754.0,87747.0,0.04564317]
[1766538797444,0.50155,87753.0,87747.0,0.04564317]
[1766538797640,0.50155,87753.0,87747.0,0.05703957]
[1766538798146,0.50155,87753.0,87747.0,0.04564317]
[1766538798731,0.50155,87753.0,87746.0,0.01144]
[1766538798938,0.50155,87753.0,87746.0,0.02283653]
[1766538799538,0.00010729,87756.0,87753.0,0.000549]
[1766538799745,0.00010729,87756.0,87752.0,0.01139575]
[1766538801341,0.00010729,87756.0,87753.0,0.01139562]
[1766538802164,0.00010729,87756.0,87750.0,0.01139601]
[1766538802781,0.00010729,87756.0,87751.0,0.01139588]
[1766538803618,0.00010729,87756.0,87748.0,0.03420181]
[1766538803967,0.00010729,87756.0,87748.0,0.04559808]
[1766538804165,0.00010729,87756.0,87749.0,0.01144]
[1766538805183,0.00010729,87756.0,87749.0,0.01139614]
[1766538805417,0.00010729,87756.0,87749.0,0.01144]
[1766538805644,0.00055,87749.0,87740.0,0.01139731]
[1766538805769,0.50155,87748.0,87739.0,0.06842663]
[1766538805980,0.50155,87748.0,87741.0,0.01139718]
[1766538806179,0.01139549,87754.0,87739.0,0.06842663]
[1766538806180,0.01154729,87756.0,87749.0,0.01139614]
[1766538806419,0.01154729,87756.0,87751.0,0.01139588]
[1766538806937,0.01154729,87756.0,87752.0,0.01139575]
[1766538807136,0.01154729,87756.0,87750.0,0.01139601]
[1766538807296,0.01154729,87756.0,87751.0,0.01139588]
[1766538807511,0.01154729,87756.0,87746.0,0.22878903]
[1766538807703,0.01154729,87756.0,87747.0,0.1724464]
[1766538808109,0.01154729,87756.0,87749.0,0.01139614]
[1766538808835,0.01154729,87756.0,87751.0,0.01139588]
[1766538808999,0.00010729,87756.0,87751.0,0.01139588]
[1766538809812,0.00010729,87756.0,87750.0,0.01139601]
[1766538810016,0.00010729,87756.0,87749.0,0.01139614]
[1766538811569,0.00010729,87756.0,87748.0,0.01139627]
[1766538811944,0.01150252,87756.0,87747.0,0.16105]
[1766538812154,0.00055,87747.0,87741.0,0.01139718]
[1766538812579,0.01139588,87751.0,87741.0,0.01139718]
[1766538812778,0.01139588,87751.0,87738.0,0.06838533]
[1766538812779,0.43122,87749.0,87738.0,0.06838533]
[1766538813106,0.43122,87749.0,87740.0,0.01139731]
[1766538813257,0.43122,87749.0,87741.0,0.01139718]
[1766538813436,0.01139627,87748.0,87739.0,0.01144]
[1766538813636,0.43122,87747.0,87739.0,0.01144]
[1766538814071,0.43122,87747.0,87740.0,0.01139731]
[1766538814285,0.43122,87747.0,87742.0,0.01139705]
[1766538815101,0.43122,87747.0,87740.0,0.01139731]
[1766538815301,0.43122,87747.0,87738.0,0.01139757]
[1766538815533,0.4194064,87747.0,87739.0,0.01144]
[1766538816099,0.4194064,87747.0,87740.0,0.01144]
[1766538816317,0.40801,87747.0,87740.0,0.01144]
[1766538817644,0.40801,87747.0,87738.0,0.01139757]
[1766538817645,0.4194064,87747.0,87738.0,0.01139757]
[1766538817827,0.4194064,87747.0,87739.0,0.01144]
[1766538818687,0.40801,87747.0,87739.0,0.02283744]
[1766538818980,0.01139601,87750.0,87739.0,0.13768744]
[1766538819210,0.01139601,87750.0,87741.0,0.01139718]
[1766538819350,0.01139588,87751.0,87742.0,0.01139705]
[1766538819551,0.01139588,87751.0,87743.0,0.11107]
[1766538819904,0.01139575,87752.0,87744.0,0.12251]
[1766538821746,0.01139588,87751.0,87744.0,0.12251]
[1766538821984,0.01139575,87752.0,87744.0,0.12251]
[1766538822197,0.06837412,87753.0,87744.0,0.12251]
[1766538822384,0.01139562,87753.0,87744.0,0.12251]
[1766538822586,0.10262173,87757.0,87745.0,0.06577]
[1766538822587,0.04564567,87757.0,87745.0,0.06577]
[1766538822803,0.40801,87760.0,87753.0,0.01194462]
[1766538823181,0.40801,87760.0,87753.0,0.01139562]
[1766538823597,0.40801,87760.0,87753.0,0.06837355]
[1766538823793,0.40801,87760.0,87754.0,0.05697695]
[1766538824000,0.01144,87762.0,87757.0,0.0113951]
[1766538824268,0.0002,87765.0,87758.0,0.01139497]
[1766538824580,0.01139419,87764.0,87755.0,0.01144]
[1766538824781,0.01139445,87762.0,87755.0,0.01144]
[1766538824969,0.06836579,87764.0,87755.0,0.01144]
[1766538825374,0.06856552,87765.0,87755.0,0.01144]
[1766538825572,0.01139419,87764.0,87755.0,0.01144]
[1766538825825,0.01139419,87764.0,87755.0,0.02283536]
[1766538826224,0.01139432,87763.0,87755.0,0.01144]
[1766538826686,0.06836529,87764.0,87755.0,0.02283536]
[1766538826894,0.01159406,87765.0,87756.0,0.01139523]
[1766538827105,0.0002,87765.0,87756.0,0.06837129]
[1766538827303,0.01159406,87765.0,87756.0,0.01139523]
[1766538828323,0.01139432,87763.0,87755.0,0.01144]
[1766538829769,0.01139445,87762.0,87755.0,0.01144]
[1766538830297,0.41940471,87760.0,87755.0,0.011333]
[1766538830501,0.41940497,87758.0,87755.0,0.01144]
[1766538830707,0.40801,87756.0,87751.0,0.01144]
[1766538830903,0.01139549,87754.0,87751.0,0.00683335]
[1766538831110,0.40801,87754.0,87751.0,0.00628335]
[1766538831855,0.41940549,87754.0,87751.0,0.00628335]
[1766538832629,0.40801,87754.0,87751.0,0.00628335]
[1766538833390,0.41940549,87754.0,87751.0,0.00628335]
[1766538835435,0.41940549,87754.0,87750.0,3.35e-06]
[1766538835674,0.40801,87750.0,87741.0,0.01139718]
[1766538835873,0.40801,87750.0,87742.0,0.02283705]
[1766538836055,0.40801,87750.0,87743.0,0.01139692]
[1766538836929,0.40801,87750.0,87744.0,0.01139679]
[1766538837064,0.40801,87750.0,87743.0,0.01139692]
[1766538837273,0.40801,87750.0,87742.0,0.01144]
[1766538837809,0.40801,87750.0,87742.0,0.02283705]
[1766538838911,0.40801,87750.0,87745.0,0.01139666]
[1766538839053,0.0229428,87754.0,87750.0,0.000549]
[1766538839459,0.01139562,87753.0,87750.0,0.000549]
[1766538839703,0.01139562,87753.0,87744.0,0.01139679]
[1766538840056,0.01139562,87753.0,87745.0,0.01139666]
[1766538840262,0.01139614,87749.0,87742.0,0.01144]
[1766538840464,0.01139601,87750.0,87742.0,0.01144]
[1766538840658,0.01139614,87749.0,87741.0,0.06012]
[1766538840927,0.40544614,87749.0,87742.0,0.01144]
[1766538841141,0.39405,87749.0,87742.0,0.01144]
[1766538841353,0.39405,87749.0,87741.0,0.02283718]
[1766538841810,0.39405,87749.0,87743.0,0.01139692]
[1766538842020,0.39405,87749.0,87742.0,0.01139705]
[1766538842612,0.393501,87749.0,87744.0,0.01139679]
[1766538842817,0.393501,87749.0,87743.0,0.01139692]
[1766538843022,0.40489714,87749.0,87740.0,0.01139731]
[1766538843246,0.40489714,87749.0,87742.0,0.01144]
[1766538843421,0.393501,87749.0,87742.0,0.02283705]
[1766538843767,0.393501,87749.0,87742.0,0.01144]
[1766538844197,0.393501,87749.0,87742.0,0.02283705]
[1766538844415,0.38145029,87749.0,87743.0,0.01139692]
[1766538844628,0.0002,87765.0,87755.0,0.05933]
[1766538844854,0.01139471,87760.0,87755.0,0.05933]
[1766538845061,0.01139471,87760.0,87752.0,0.01144]
[1766538845062,0.01139484,87759.0,87752.0,0.01144]
[1766538845267,0.01139497,87758.0,87752.0,0.01144]
[1766538845502,0.01139497,87758.0,87746.0,0.01139653]
[1766538845503,0.4054451,87757.0,87750.0,0.01144]
[1766538846708,0.01139458,87761.0,87750.0,0.02283601]
[1766538847002,0.39405,87755.0,87750.0,0.01144]
[1766538847205,0.39405,87755.0,87748.0,0.01144]
[1766538848005,0.40544536,87755.0,87748.0,0.01144]
[1766538848203,0.39405,87755.0,87748.0,0.01144]
[1766538848817,0.40544536,87755.0,87748.0,0.01144]
[1766538849651,0.39405,87755.0,87748.0,0.01139627]
[1766538850198,0.39405,87755.0,87747.0,0.01144]
[1766538850846,0.40544536,87755.0,87747.0,0.01144]
[1766538852210,0.394599,87747.0,87742.0,0.01144]
[1766538852445,0.39405,87747.0,87742.0,0.01144]
[1766538853763,0.39405,87747.0,87739.0,0.01139744]
[1766538853921,0.39405,87747.0,87739.0,0.01144]
[1766538854127,0.01139653,87746.0,87736.0,0.01139782]
[1766538854328,0.01139666,87745.0,87734.0,0.05699031]
[1766538854532,0.01139666,87745.0,87736.0,0.02283782]
[1766538854762,0.4054464,87747.0,87738.0,0.01139757]
[1766538855014,0.39405,87747.0,87739.0,0.01139744]
[1766538856303,0.39405,87747.0,87741.0,0.01139718]
[1766538856483,0.39405,87747.0,87740.0,0.01139731]
[1766538856859,0.39405,87747.0,87741.0,0.01139718]
[1766538857661,0.39405,87747.0,87739.0,0.01139744]
[1766538858099,0.39405,87747.0,87740.0,0.01139731]
[1766538858601,0.39405,87747.0,87741.0,0.01139718]
[1766538859253,0.39405,87747.0,87738.0,0.01139757]
[1766538859425,0.39405,87745.0,87736.0,0.02283782]
[1766538859623,0.39405,87745.0,87737.0,0.01139769]
[1766538859986,0.39405,87745.0,87738.0,0.01139757]
[1766538860807,0.39405,87745.0,87737.0,0.01139769]
[1766538861026,0.39405,87745.0,87738.0,0.01139757]
[1766538862229,0.39405,87745.0,87737.0,0.01139769]
[1766538863267,0.40544666,87745.0,87736.0,0.02283782]
[1766538863439,0.40544666,87745.0,87737.0,0.01139769]
[1766538863646,0.01139562,87753.0,87742.0,0.05909]
[1766538863824,0.01144,87752.0,87745.0,0.07048666]
[1766538864028,0.01144,87752.0,87749.0,0.01139614]
[1766538864271,0.01144,87752.0,87746.0,0.01139653]
[1766538864467,0.01144,87752.0,87746.0,0.06882653]
[1766538864674,0.01144,87752.0,87746.0,0.05743]
[1766538865422,0.01144,87752.0,87748.0,0.01139627]
[1766538865973,0.000549,87748.0,87747.0,0.0113964]
[1766538866178,0.000549,87748.0,87746.0,0.06882653]
[1766538866789,0.01144,87752.0,87746.0,0.06882653]
[1766538867562,0.01144,87752.0,87747.0,0.0113964]
[1766538867786,0.01144,87752.0,87745.0,0.01139666]
[1766538867991,0.01144,87752.0,87744.0,0.01139679]
[1766538868203,0.01144,87752.0,87745.0,0.01139666]
[1766538868416,0.01144,87752.0,87744.0,0.01139679]
[1766538868859,0.01144,87752.0,87747.0,0.0113964]
[1766538869069,0.01144,87753.0,87746.0,0.06077653]
[1766538870384,0.01144,87753.0,87747.0,0.0113964]
[1766538870604,0.01144,87753.0,87746.0,0.04938]
[1766538870811,0.01144,87753.0,87746.0,0.06077653]
[1766538871577,0.01144,87753.0,87747.0,0.0113964]
[1766538871757,0.01144,87753.0,87746.0,0.06077653]
[1766538872176,0.01139523,87756.0,87746.0,0.06077653]
[1766538872377,0.01144,87755.0,87747.0,0.02044]
[1766538872599,0.01144,87755.0,87747.0,0.0113964]
[1766538874004,0.01144,87755.0,87748.0,0.01139627]
[1766538874431,0.01144,87755.0,87752.0,0.01139575]
[1766538874678,0.0002,87765.0,87749.0,0.43234015]
[1766538874891,0.01164,87765.0,87758.0,0.01139497]
[1766538875095,0.01139458,87761.0,87752.0,0.02283575]
[1766538875299,0.36871,87760.0,87752.0,0.01144]
[1766538875476,0.36871,87760.0,87752.0,0.02283575]
[1766538875802,0.36871,87760.0,87752.0,0.01144]
[1766538877762,0.38010471,87760.0,87752.0,0.01144]
[1766538877968,0.36871,87760.0,87752.0,0.02283575]
[1766538880601,0.38010471,87760.0,87752.0,0.01144]
[1766538881611,0.36871,87760.0,87752.0,0.01144]
[1766538882499,0.38010471,87760.0,87752.0,0.01144]
[1766538883731,0.36871,87760.0,87752.0,0.02283575]
[1766538885332,0.36871,87760.0,87751.0,0.02283588]
[1766538885539,0.36871,87760.0,87752.0,0.01139575]
[1766538886368,0.36871,87757.0,87751.0,0.01144]
[1766538887700,0.36871,87757.0,87751.0,0.02283588]
[1766538888709,0.36871,87757.0,87751.0,0.01144]
[1766538888939,0.3801051,87757.0,87751.0,0.01144]
[1766538889313,0.36871,87757.0,87751.0,0.01144]
[1766538894952,0.36871,87755.0,87748.0,0.01144]
[1766538895178,0.36871,87755.0,87748.0,0.02283627]
[1766538895898,0.36871,87755.0,87749.0,0.01139614]
[1766538896014,0.36871,87755.0,87750.0,0.01139601]
[1766538896215,0.36871,87755.0,87749.0,0.01139614]
[1766538897379,0.36871,87755.0,87750.0,0.01139601]
[1766538899723,0.36871,87755.0,87749.0,0.01139614]
[1766538901114,0.36871,87755.0,87750.0,0.01139601]
[1766538901338,0.36871,87755.0,87749.0,0.01139614]
[1766538901705,0.36871,87755.0,87748.0,0.01144]
[1766538901922,0.36871,87755.0,87748.0,0.02283627]
[1766538902124,0.01139601,87750.0,87746.0,0.00010731]
[1766538902324,0.36871,87755.0,87747.0,0.01144]
[1766538902325,0.00055,87748.0,87747.0,0.01144]
[1766538902524,0.05697862,87753.0,87747.0,0.01144]
[1766538902897,0.06837489,87752.0,87747.0,0.01144]
[1766538903079,0.36468549,87754.0,87747.0,0.01144]
[1766538903315,0.01139575,87752.0,87747.0,0.01144]
[1766538903554,0.01139562,87753.0,87747.0,0.01144]
[1766538903750,0.36468562,87753.0,87747.0,0.01144]
[1766538904110,0.01139614,87749.0,87745.0,0.01144]
[1766538904312,0.01106812,87749.0,87745.0,0.01144]
[1766538904696,0.01139614,87749.0,87745.0,0.01144]
[1766538904903,0.01139601,87750.0,87745.0,0.01144]
[1766538905755,0.01139614,87749.0,87745.0,0.01144]
[1766538905950,0.01139601,87750.0,87745.0,0.01144]
[1766538906464,0.01139614,87749.0,87745.0,0.01144]
[1766538906672,0.01139614,87749.0,87736.0,0.06838667]
[1766538906673,0.01139679,87744.0,87733.0,0.01139821]
[1766538906984,0.35329,87746.0,87735.0,0.01139795]
[1766538907152,0.35329,87746.0,87738.0,0.01139757]
[1766538907319,0.36468653,87746.0,87740.0,0.05]
[1766538907521,0.01139666,87745.0,87740.0,0.05]
[1766538907720,0.36468653,87746.0,87740.0,0.05]
[1766538908104,0.35329,87746.0,87740.0,0.05]
[1766538908309,0.36468653,87746.0,87740.0,0.05]
[1766538908798,0.35329,87744.0,87740.0,0.05]
[1766538909004,0.35329,87744.0,87698.0,0.0004]
[1766538909005,0.35384,87740.0,87733.0,0.01144]
[1766538909196,0.35384,87740.0,87733.0,0.02283821]
[1766538909491,0.35384,87740.0,87732.0,0.06839002]
[1766538909689,0.35329,87740.0,87732.0,0.06839002]
[1766538909838,0.01139744,87739.0,87728.0,0.01139886]
[1766538910035,0.01139744,87739.0,87729.0,0.01144]
[1766538910036,0.35329,87736.0,87729.0,0.01144]
[1766538910685,0.35329,87733.0,87725.0,0.01144]
[1766538910858,0.36473,87733.0,87721.0,0.01144]
[1766538911224,0.36473,87733.0,87725.0,0.01139925]
[1766538912071,0.37612821,87733.0,87724.0,0.01139938]
[1766538912271,0.01139847,87731.0,87722.0,0.01139964]
[1766538912487,0.35329,87730.0,87724.0,0.01139938]
[1766538912688,0.35329,87730.0,87725.0,0.01139925]
[1766538913099,0.35329,87730.0,87726.0,0.01139912]
[1766538913701,0.35329,87730.0,87725.0,0.01139925]
[1766538914120,0.35329,87730.0,87726.0,0.01139912]
[1766538914297,0.35329,87730.0,87725.0,0.01139925]
[1766538914520,0.35329,87730.0,87723.0,0.01139951]
[1766538914910,0.35329,87730.0,87724.0,0.01139938]
[1766538915224,0.01139834,87732.0,87718.0,0.00047754]
[1766538915402,0.35329,87728.0,87720.0,0.0113999]
[1766538915836,0.35329,87728.0,87721.0,0.01139977]
[1766538916108,0.35329,87728.0,87722.0,0.01139964]
[1766538916438,0.35329,87728.0,87721.0,0.01139977]
[1766538916863,0.35329,87728.0,87723.0,0.01139951]
[1766538917238,0.35329,87728.0,87722.0,0.01139964]
[1766538917662,0.35329,87728.0,87721.0,0.01139977]
[1766538918266,0.35329,87728.0,87722.0,0.01139964]
[1766538918463,0.35329,87728.0,87721.0,0.01139977]
[1766538919315,0.36468886,87728.0,87718.0,0.00047754]
[1766538919510,0.36468886,87728.0,87719.0,0.01140003]
[1766538919712,0.35329,87728.0,87720.0,0.0113999]
[1766538920885,0.35329,87728.0,87719.0,0.01140003]
[1766538921065,0.36468886,87728.0,87719.0,0.01140003]
[1766538921938,0.01139899,87727.0,87718.0,0.0118777]
[1766538922094,0.36468886,87728.0,87719.0,0.01140003]
[1766538922256,0.01139899,87727.0,87718.0,0.0118777]
[1766538922463,0.35329,87727.0,87719.0,0.01140003]
[1766538924130,0.35329,87727.0,87720.0,0.0113999]
[1766538924328,0.35329,87727.0,87721.0,0.01139977]
[1766538924536,0.35329,87727.0,87720.0,0.0113999]
[1766538925216,0.35329,87727.0,87721.0,0.01139977]
[1766538925422,0.35329,87727.0,87722.0,0.01139964]
[1766538925687,0.35329,87727.0,87718.0,0.00047754]
[1766538925840,0.01139912,87726.0,87718.0,0.00047754]
[1766538926196,0.01139912,87726.0,87701.0,0.2280468]
[1766538926197,0.35329,87714.0,87707.0,0.0004]
[1766538926372,0.35329,87712.0,87702.0,0.01140224]
[1766538926515,0.35329,87710.0,87703.0,0.01144]
[1766538927265,0.35329,87710.0,87702.0,0.02284224]
[1766538927442,0.35329,87710.0,87702.0,0.01144]
[1766538927443,0.36473193,87710.0,87702.0,0.01144]
[1766538927646,0.36473193,87710.0,87698.0,0.0004]
[1766538927647,0.01140198,87704.0,87698.0,0.0004]
[1766538927964,0.34497,87703.0,87698.0,0.0004]
[1766538928377,0.35637211,87703.0,87698.0,0.0004]
[1766538928532,0.34497,87703.0,87698.0,0.0004]
[1766538929856,0.01140237,87701.0,87686.0,0.07056]
[1766538930061,0.01140276,87698.0,87689.0,0.01140393]
[1766538930259,0.0114025,87700.0,87691.0,0.01140367]
[1766538930659,0.01140289,87697.0,87688.0,0.08196406]
[1766538930858,0.35637302,87696.0,87687.0,0.01140419]
[1766538931180,0.35637302,87696.0,87686.0,0.01140432]
[1766538931561,0.34497,87696.0,87686.0,0.01140432]
[1766538932325,0.35637302,87696.0,87686.0,0.01140432]
[1766538932528,0.35637302,87696.0,87695.0,0.00071706]
[1766538932738,0.34497,87694.0,87686.0,0.01140432]
[1766538933756,0.34497,87694.0,87684.0,0.01072335]
[1766538934155,0.34497,87694.0,87686.0,0.01140432]
[1766538934590,0.35637328,87694.0,87685.0,0.01140445]
[1766538934801,0.3566,87693.0,87685.0,0.01140445]
[1766538934976,0.3566,87693.0,87686.0,0.01140432]
[1766538935178,0.3566,87693.0,87685.0,0.01140445]
[1766538935416,0.3566,87693.0,87686.0,0.01140432]
[1766538935946,0.3566,87693.0,87681.0,0.06842971]
[1766538935947,0.3566,87690.0,87679.0,0.06843116]
[1766538936119,0.3566,87684.0,87676.0,0.0004]
[1766538936340,0.3566,87684.0,87676.0,0.01180562]
[1766538936482,0.3566,87684.0,87676.0,0.0004]
[1766538936692,0.3566,87684.0,87676.0,0.01180562]
[1766538937435,0.3566,87684.0,87677.0,0.01140549]
[1766538937634,0.3566,87684.0,87680.0,0.0114051]
[1766538938015,0.3566,87684.0,87681.0,0.01140497]
[1766538938374,0.3566,87684.0,87680.0,0.0114051]
[1766538938884,0.3566,87684.0,87683.0,0.00037457]
[1766538939425,0.3566,87684.0,87683.0,4.57e-06]
[1766538941793,0.41362294,87684.0,87683.0,4.57e-06]
[1766538943557,0.41362697,87678.0,87676.0,0.0004]
[1766538943761,0.36804,87677.0,87676.0,0.0004]
[1766538944680,0.36804,87677.0,87676.0,0.00075827]
[1766538945410,0.36800628,87671.0,87663.0,0.0004]
[1766538945623,0.0114068,87667.0,87661.0,0.0004]
[1766538945749,0.3566,87669.0,87657.0,0.0118081]
[1766538945750,0.3566,87666.0,87660.0,0.01140771]
[1766538945950,0.3566,87666.0,87658.0,0.01218521]
[1766538945951,0.35615823,87666.0,87658.0,0.01218521]
[1766538946154,0.35615823,87666.0,87658.0,0.00077724]
[1766538947313,0.35615823,87666.0,87660.0,0.01140771]
[1766538947530,0.01144,87672.0,87670.0,0.01140641]
[1766538947692,0.01140497,87681.0,87672.0,0.00055]
[1766538947892,0.01144,87680.0,87672.0,0.01195615]
[1766538948093,0.01144,87680.0,87672.0,0.01140615]
[1766538948309,0.36804,87680.0,87668.0,0.10645667]
[1766538948498,0.36800536,87678.0,87668.0,0.09505]
[1766538948827,0.01140549,87677.0,87668.0,0.09505]
[1766538949006,0.01140549,87677.0,87675.0,0.00024969]
[1766538949883,0.01144629,87677.0,87675.0,0.00024969]
[1766538950196,0.42507401,87677.0,87675.0,0.00024969]
[1766538950404,0.01140615,87672.0,87662.0,0.07331]
[1766538950600,0.01140615,87672.0,87661.0,0.01140758]
[1766538950601,0.36800628,87671.0,87661.0,0.01140758]
[1766538950800,0.3566,87669.0,87667.0,0.00024965]
[1766538951005,0.3566,87669.0,87661.0,0.01140758]
[1766538951569,0.3566,87669.0,87661.0,0.06844547]
[1766538951707,0.35605,87669.0,87664.0,0.01140719]
[1766538951909,0.35605,87669.0,87666.0,0.01140693]
[1766538952441,0.35605,87669.0,87665.0,0.01140706]
[1766538952787,0.35605,87669.0,87662.0,0.01140745]
[1766538953031,0.35605,87669.0,87663.0,0.01140732]
[1766538953805,0.35605,87669.0,87662.0,0.01140745]
[1766538954010,0.35605,87669.0,87664.0,0.01140719]
[1766538954722,0.35605,87669.0,87663.0,0.01140732]
[1766538954926,0.35605,87669.0,87664.0,0.01140719]
[1766538955093,0.35605,87669.0,87661.0,0.01140758]
[1766538955293,0.3566,87667.0,87657.0,0.01144]
[1766538955748,0.3680068,87667.0,87658.0,0.01140797]
[1766538955913,0.3566,87667.0,87659.0,0.01140784]
[1766538957929,0.3566,87667.0,87655.0,0.0004]
[1766538957930,0.02733112,87662.0,87655.0,0.0004]
[1766538958253,0.35883,87658.0,87652.0,0.0004]
[1766538958651,0.35883,87658.0,87653.0,0.01140862]
[1766538958853,0.35883,87658.0,87652.0,0.0004]
[1766538959031,0.35883,87658.0,87652.0,0.01180875]
[1766538959235,0.35883,87658.0,87652.0,0.0004]
[1766538959752,0.35883,87658.0,87650.0,0.0004]
[1766538959915,0.05703711,87663.0,87650.0,0.0004]
[1766538959916,0.01140628,87671.0,87650.0,0.13423]
[1766538960114,0.0387374,87671.0,87659.0,0.06844695]
[1766538960322,0.01140693,87666.0,87658.0,0.13426]
[1766538960633,0.35883,87670.0,87664.0,0.01140719]
[1766538960867,0.000549,87664.0,87659.0,0.00024968]
[1766538961253,0.0114068,87667.0,87659.0,0.00024968]
[1766538961670,0.38167667,87668.0,87659.0,0.00024968]
[1766538961671,0.37027,87668.0,87659.0,0.00024968]
[1766538961848,0.37027,87668.0,87660.0,0.01140771]
[1766538962938,0.37027877,87677.0,87665.0,0.01140706]
[1766538963147,0.01144,87674.0,87666.0,0.05703465]
[1766538963562,0.02733112,87676.0,87666.0,0.05703465]
[1766538963900,0.40900674,87676.0,87667.0,0.0114068]
[1766538964246,0.39760112,87676.0,87668.0,0.01140667]
[1766538965449,0.35883,87676.0,87671.0,0.01140628]
[1766538965658,4.08e-05,87677.0,87671.0,0.01140628]
[1766538965840,4.08e-05,87677.0,87670.0,0.01140641]
[1766538967040,4.08e-05,87677.0,87671.0,0.01140628]
[1766538967442,4.08e-05,87677.0,87672.0,0.01140615]
[1766538968239,4.08e-05,87677.0,87671.0,0.01140628]
[1766538968648,4.08e-05,87677.0,87672.0,0.01140615]
[1766538969279,4.08e-05,87677.0,87671.0,0.01140628]
[1766538969488,4.08e-05,87677.0,87670.0,0.01140641]
[1766538970332,4.08e-05,87677.0,87671.0,0.01140628]
[1766538970470,4.08e-05,87677.0,87670.0,0.01140641]
[1766538971832,0.01140523,87679.0,87671.0,0.01140628]
[1766538972034,0.01140523,87679.0,87670.0,0.01140641]
[1766538972400,0.01144,87681.0,87673.0,0.01140602]
[1766538972863,0.01144,87681.0,87673.0,0.01085702]
[1766538973022,0.0114051,87680.0,87671.0,0.06843768]
[1766538973219,0.02284497,87681.0,87672.0,0.01140615]
[1766538973672,0.0114051,87680.0,87671.0,0.06843768]
[1766538974692,0.01140523,87679.0,87670.0,0.01140641]
[1766538974897,0.0114051,87680.0,87672.0,0.01140615]
[1766538975074,0.38167497,87681.0,87672.0,0.01140615]
[1766538975450,0.38167497,87681.0,87671.0,0.01140628]
[1766538975633,0.01140536,87678.0,87668.0,0.01140667]
[1766538975768,0.00055,87671.0,87668.0,0.01144747]
[1766538975977,0.01140536,87678.0,87668.0,0.01144747]
[1766538976184,0.37023536,87678.0,87668.0,4.08e-05]
[1766538976592,0.01140562,87676.0,87668.0,4.08e-05]
[1766538977241,0.37023536,87678.0,87669.0,0.01140654]
[1766538977452,0.01140549,87677.0,87668.0,0.01144747]
[1766538977609,0.01140549,87677.0,87668.0,4.08e-05]
[1766538977834,0.01140549,87677.0,87667.0,0.02186549]
[1766538978923,0.37023536,87678.0,87669.0,0.01140654]
[1766538979156,0.35883,87677.0,87667.0,0.02186549]
[1766538979364,0.01140562,87676.0,87667.0,0.0002]
[1766538979572,0.0002,87667.0,87665.0,0.01144]
[1766538979746,0.00035,87661.0,87659.0,0.01168968]
[1766538979944,4.85e-06,87661.0,87659.0,0.01168968]
[1766538980202,0.35883,87666.0,87659.0,0.01168968]
[1766538980780,0.35883,87666.0,87659.0,0.02309752]
[1766538981001,0.35883,87676.0,87670.0,0.01140641]
[1766538981162,0.01144,87681.0,87671.0,0.01140628]
[1766538981392,0.01144,87681.0,87673.0,0.01140602]
[1766538981595,0.01144,87681.0,87674.0,0.01140589]
[1766538981921,0.01144,87681.0,87673.0,0.01140602]
[1766538982106,0.01144,87681.0,87672.0,0.01140615]
[1766538982310,0.3702351,87680.0,87668.0,0.02284667]